Cogmind - Beta 13 @@@ ROGUE MODE // 2024.04.13 @ 03:17:57 Player: GregoriusTechneticies Result: Destroyed by D-53 Grenadier with Mini Grenade Launcher Performance ------------- Evolutions (1) 500 Regions Visited (3) 600 Robots Destroyed (37) 185 Value Destroyed (472) 472 Prototype IDs (0) 0 Alien Tech Used (0) 0 Bonus (0) 0 TOTAL SCORE: 1757 Bonus ------- None Cogmind --------- Core Integrity 0/400 Matter 237/300 Energy 100/100 System Corruption 0% Temperature Cool (0) Movement Core (300) Ox5 Location -9/Mines Parts ------- > --- POWER (1) -------- (None) > --- PROPULSION (2) --- (None) > --- UTILITY (4) ------ Medium Storage Unit Signal Interpreter Terrain Scan Processor > --- WEAPON (2) ------- Heavy Mace Heavy Mace > --- INVENTORY (10) --- Structural Scanner Sensor Array Seismic Detector Hacking Suite Datajack Heavy Mace Heavy Mace Peak State ------------ > --- POWER ------------ Light Ion Engine > --- PROPULSION ------- Wheel Wheel > --- UTILITY ---------- Medium Storage Unit Weight Redist. System Improved Terrain Scanner Terrain Scan Processor > --- WEAPON ----------- Autogun Autogun > --- INVENTORY -------- Light Ion Engine Wheel Structural Scanner Seismic Detector Seismic Detector Heavy Mace Heavy Mace Heavy Mace Heavy Mace [Rating: 16] Favorites ----------- Power Light Ion Engine Engine Light Ion Engine Power Core Light Nuclear Core Propulsion Wheel Wheel Wheel Utility Terrain Scan Processor Device Improved Terrain Scanner Storage Medium Storage Unit Processor Terrain Scan Processor Weapon Autogun Ballistic Gun Autogun Launcher Rocket Launcher Special Weapon Mining Laser Impact Weapon Heavy Mace Build | -11 -10 -9 -9 ------- Run | Yrd Mat Mat Min Slots Evolved 2 | . . 2 . Power . | . . . . Propulsion . | . . . . Utility 2 | . . 2 . Weapon . | . . . . Parts Attached 46 | 10 4 18 14 Power 7 | 1 . 3 3 Engine 6 | 1 . 3 2 Core 1 | . . . 1 Reactor . | . . . . Propulsion 10 | 4 . 1 5 Treads . | . . . . Leg . | . . . . Wheel 10 | 4 . 1 5 Hover . | . . . . Flight . | . . . . Utility 14 | 3 . 8 3 Device 10 | 2 . 5 3 Storage 2 | 1 . 1 . Processor 2 | . . 2 . Hackware . | . . . . Protection . | . . . . Artifact . | . . . . Weapon 15 | 2 4 6 3 Energy Gun . | . . . . Energy Cannon . | . . . . Ballistic Gun 8 | 2 2 4 . Ballistic Cannon . | . . . . Launcher 1 | . . . 1 Special Weapon 2 | . 2 . . Impact Weapon 4 | . . 2 2 Slashing Weapon . | . . . . Piercing Weapon . | . . . . Special Melee Weapon . | . . . . Unidentified Prototypes . | . . . . Parts Lost 8 | . . . 8 Power 1 | . . . 1 Propulsion 2 | . . . 2 Utility 2 | . . . 2 Weapon 3 | . . . 3 Highest Loss Streak 7 | . . . 7 To Critical Strikes . | . . . . Average Slot Usage (%) 98 | . 100 98 98 Engine 10 | . 14 11 9 Wheel 22 | . 28 22 21 Device 13 | . 14 19 10 Storage 11 | . 14 11 11 Processor 16 | . . 11 22 Ballistic Gun 21 | . 25 21 21 Naked Turns . | . . . . Heaviest Build 22 | 12 12 22 22 Greatest Support 26 | 20 20 26 20 Greatest Overweight (x) 5 | 1 . 1 5 Average Overweight (x) . | . . . . Largest Inventory Capacity 10 | 8 8 10 10 Average Capacity 9 | 7 8 9 10 Most Carried 10 | 8 8 10 10 Average Carried 8 | 6 8 8 9 Final Capacity 10 | 8 8 10 10 Final Carried 10 | 8 8 10 7 Class Distribution -------------------- 71% | Scavenger-Mutant 28% | Mutant Dominant Class ---------------- Mutant | -10/Materials Scavenger-Mutant | -9/Materials Scavenger-Mutant | -9/Mines Resources | -11 -10 -9 -9 ----------- Run | Yrd Mat Mat Min Matter Collected 1468 | 585 126 337 420 Remotely . | . . . . Salvage Created 1009 | 336 26 284 363 Parts 85 | 33 3 22 27 Haulers Intercepted 1 | . . 1 . Recyclers Shooed 5 | 1 . 3 1 Parts Field Recycled . | . . . . Retrieved Matter . | . . . . Parts Self-Destructed . | . . . . Prevented . | . . . . Kills | -11 -10 -9 -9 ------- Run | Yrd Mat Mat Min Combat Hostiles Destroyed 17 | . 2 2 13 Guns 12 | . 2 2 8 AOE 5 | . . . 5 Classes Destroyed 10 | 3 1 5 1 Worker 4 | 4 . . . Builder 7 | . . 3 4 Tunneler 9 | 9 . . . Hauler 1 | . . 1 . Recycler 2 | 1 . 1 . Operator 1 | . . 1 . Watcher 1 | . . 1 . Swarmer 5 | . 2 . 3 Grunt 7 | . . 2 5 Assembled 5 | . . . 5 Best Kill Streak 5 | 2 2 2 5 Combat Bots Only 5 | . 2 1 5 Max Kills in Single Turn 4 | 1 1 1 4 Gunslinging 1 | . . . 1 Exploded 4 | . . . 4 Melee . | . . . . Uniques/NPCs Destroyed . | . . . . Combat | -11 -10 -9 -9 -------- Run | Yrd Mat Mat Min Hostile Shots Fired 121 | . 18 19 84 Missed 32 | . 4 6 22 Damage Taken 1369 | . 118 158 1093 Core 419 | . 17 66 336 Absorbed by Shields . | . . . . Core Remaining (%) 96 | 100 93 . . Volleys Fired 113 | 34 12 39 28 Largest 2 | 2 2 2 2 Hottest 100 | 40 100 46 46 Shots Fired 219 | 68 19 78 54 Gun 212 | 68 14 78 52 Cannon . | . . . . Launcher 2 | . . . 2 Special 5 | . 5 . . Kinetic 212 | 68 14 78 52 Thermal 5 | . 5 . . Explosive 2 | . . . 2 Electromagnetic . | . . . . Robot Hit Streak 8 | 8 3 7 8 Robot Miss Streak 3 | 2 3 3 2 Penetration Max . | . . . . Secondary Targets 2 | . 1 . 1 Max Gunslinging Chain 1 | . 1 . 1 Shots Hit Robots 132 | 44 8 45 35 Core Hits 63 | 20 3 13 27 Critical Kills 2 | 1 . . 1 Critical Parts Destroyed 1 | . . . 1 Critical Strikes 3 | 1 . . 2 Destroy 3 | 1 . . 2 Melee Attacks 7 | . . 6 1 Impact 7 | . . 6 1 Slashing . | . . . . Piercing . | . . . . Sneak Attacks 1 | . . 1 . Combat Hostiles . | . . . . Follow-up Attacks . | . . . . Damage Inflicted 2139 | 436 76 740 887 Guns 1653 | 436 76 617 524 Cannons . | . . . . Explosions 363 | . . . 363 Melee 123 | . . 123 . Ramming . | . . . . Kinetic 1653 | 436 76 617 524 Thermal . | . . . . Explosive 363 | . . . 363 Electromagnetic . | . . . . Impact 123 | . . 123 . Slashing . | . . . . Piercing . | . . . . Highest Corruption . | . . . . Average Corruption . | . . . . Corruption Purged . | . . . . Corruption Blocked . | . . . . Overload Shots . | . . . . Overflow Damage 110 | . . 83 27 Projectiles . | . . . . Explosions 27 | . . . 27 Melee 83 | . . 83 . Knockbacks 1 | . . 1 . Impact 1 | . . 1 . Kinetic . | . . . . Secondary . | . . . . Self-Inflicted Damage 49 | . . . 49 Shots 1 | . . . 1 Rammed . | . . . . Targets Rammed . | . . . . Kicked . | . . . . Crushed . | . . . . Highest Temperature 60 | . 60 6 29 Average Temperature 13 | . 25 6 7 Received Heat Transfer 335 | . 6 75 254 Siege Activations . | . . . . Robots Corrupted . | . . . . Combat Hostiles . | . . . . Parts Fried 1 | . . 1 . Impact Corruptions 3 | . . 3 . Robots Melted . | . . . . Combat Hostiles . | . . . . Parts Melted . | . . . . Heat Transferred . | . . . . Parts Sabotaged . | . . . . Parts Stolen . | . . . . Parts Stripped . | . . . . Power Chain Reactions . | . . . . Alert | -11 -10 -9 -9 ------- Run | Yrd Mat Mat Min Peak Influence 263 | 70 130 260 263 Initial 63 | . . 54 63 Average 89 | 41 57 117 102 Maximum Alert Level 1 | . . 1 1 Low Security (%) 83 | 100 100 89 71 Level 1 16 | . . 10 28 Level 2 . | . . . . Level 3 . | . . . . Level 4 . | . . . . Level 5 . | . . . . High Security . | . . . . Max Security . | . . . . Squads Dispatched 5 | . 2 3 . Investigation 1 | . . 1 . Extermination . | . . . . Reinforcement 4 | . 2 2 . Assault . | . . . . Garrison . | . . . . Intercept . | . . . . Searches Triggered . | . . . . Construction Impeded . | . . . . Haulers Reinforced . | . . . . Active Scanning Responses . | . . . . Cargo Convoy Interrupts . | . . . . Stealth | -11 -10 -9 -9 --------- Run | Yrd Mat Mat Min Distress Signals 3 | . . 3 . Communications Jammed . | . . . . Distress Signals . | . . . . Times Spotted 52 | . 7 13 32 Peak Tracking Total 22 | . 4 4 22 Tactical Retreats 6 | . 2 3 1 Traps | -11 -10 -9 -9 ------- Run | Yrd Mat Mat Min Traps Triggered . | . . . . Indirectly . | . . . . Trap Hack Attempts . | . . . . Triggered . | . . . . Disarmed . | . . . . Reprogrammed . | . . . . Reused . | . . . . Traps Extracted . | . . . . Installed . | . . . . Triggered . | . . . . Machines | -11 -10 -9 -9 ---------- Run | Yrd Mat Mat Min Machines Disabled 1 | . . 1 . Max in Single Turn 1 | . . 1 . Machines Repaired . | . . . . Machines Dismantled . | . . . . Machines Sabotaged . | . . . . Overloaded Fab Kills . | . . . . Hacking | -11 -10 -9 -9 --------- Run | Yrd Mat Mat Min Machines Accessed 4 | . 1 3 . Terminals 2 | . . 2 . Fabricators . | . . . . Repair Stations 1 | . 1 . . Recycling Units 1 | . . 1 . Scanalyzers . | . . . . Garrison Access . | . . . . Total Hacks 11 | . 1 10 . Successful 7 | . 1 6 . Failed 4 | . . 4 . Catastrophic . | . . . . Database Lockouts . | . . . . Manual 8 | . 1 7 . Terminals 9 | . . 9 . Fabricators . | . . . . Repair Stations 1 | . 1 . . Recycling Units 1 | . . 1 . Scanalyzers . | . . . . Garrison Access . | . . . . Terminal Hacks 3 | . . 3 . Record 1 | . . 1 . Branch Access Points 1 | . . 1 . Terminal Index 1 | . . 1 . Fabricator Hacks . | . . . . Repair Station Hacks . | . . . . Recycling Unit Hacks 1 | . . 1 . Retrieve Components 1 | . . 1 . Scanalyzer . | . . . . Garrison Access Hacks . | . . . . Unauthorized Hacks 3 | . 1 2 . Terminals 2 | . . 2 . Botnet 2 | . . 2 . Fabricators . | . . . . Repair Stations 1 | . 1 . . Mechanics 1 | . 1 . . Recycling Units . | . . . . Scanalyzers . | . . . . Garrison Access . | . . . . Data Cores Recovered . | . . . . Used . | . . . . Hacking Detections 3 | . . 3 . Full Trace Events 1 | . . 1 . Feedback Events . | . . . . Feedback Blocked . | . . . . Robot Schematics Acquired . | . . . . Robots Built . | . . . . Authchips . | . . . . Time . | . . . . Total Robot Build Rating . | . . . . Part Schematics Acquired . | . . . . Parts Built . | . . . . Authchips . | . . . . Time . | . . . . Total Part Build Rating . | . . . . Parts Repaired . | . . . . Time . | . . . . Parts Recycled . | . . . . Recycled Matter . | . . . . Retrieved Matter . | . . . . Retrieved Components 1 | . . 1 . Parts Scanalyzed . | . . . . Part Schematics Acquired . | . . . . Parts Damaged . | . . . . Bothacking | -11 -10 -9 -9 ------------ Run | Yrd Mat Mat Min Used RIF Installer . | . . . . Robots Hacked . | . . . . Non-combat . | . . . . Combat . | . . . . Robot Hacks Applied . | . . . . Relay Couplers Released . | . . . . Fabnet Peak Effective % . | . . . . Robots Rewired . | . . . . Allies Hacked . | . . . . Hacks Repelled . | . . . . Allies | -11 -10 -9 -9 -------- Run | Yrd Mat Mat Min Total Allies . | . . . . Largest Group . | . . . . Highest-Rated Group . | . . . . Highest-Rated Ally . | . . . . Total Orders . | . . . . Ally Attacks . | . . . . Total Damage . | . . . . Kills . | . . . . Allies Corrupted . | . . . . Allies Melted . | . . . . Intel | -11 -10 -9 -9 ------- Run | Yrd Mat Mat Min Robot Analysis Total . | . . . . Derelict Logs Recovered 1 | . . . 1 Drone Launches . | . . . . Drone Recoveries . | . . . . Exploration | -11 -10 -9 -9 ------------- Run | Yrd Mat Mat Min Turns Passed 2332 | 405 282 499 1146 Spaces Moved 1233 | 256 238 423 316 Core 15 | 12 . . 3 Treads . | . . . . Legs . | . . . . Wheels 1218 | 244 238 423 313 Hover . | . . . . Flight . | . . . . Fastest Speed 50 | 50 80 80 80 Average Speed 81 | 81 80 80 84 Slowest Speed 300 | 95 80 95 300 Overloaded Moves . | . . . . Propulsion Burnouts . | . . . . Robots Hopped . | . . . . Cave-ins Triggered . | . . . . Exploration Rate (%) 31 | 6 30 33 57 Regions Visited 3 Branch Regions 1 Pre-discovered Areas . | . . . . Known Exits Taken 1 | . . 1 . Unknown Exits Taken 2 | 1 1 . . Scrap Searched 2 | . . . 2 Spaces Dug 8 | . 5 3 . Terrain Destroyed 21 | . 5 3 13 Melee 3 | . . 3 . Projectile 5 | . 5 . . AOE 13 | . . . 13 Terrain Rammed . | . . . . Walls Destroyed . | . . . . Machines Disabled . | . . . . Actions | -11 -10 -9 -9 --------- Run | Yrd Mat Mat Min Total 2366 | 402 301 511 1152 Wait 897 | 68 44 . 785 Move 1230 | 255 237 422 316 Hop . | . . . . Pick Up 38 | 24 2 11 1 Fast Attach 7 | 1 . 4 2 Attach 10 | 6 . 1 3 Detach . | . . . . Swap 29 | 3 4 13 9 Drop 35 | 11 2 15 7 Fire 113 | 34 12 39 28 Melee 7 | . . 6 1 Ram . | . . . . Kick . | . . . . Crush . | . . . . Escape Stasis . | . . . . Rewire . | . . . . Trap . | . . . . Miscellaneous . | . . . . Route ------- -11/Scrapyard -10/Materials -9/Materials (discovered 4 exits: *Min x2 / Sto x2) -9/Mines (discovered 2 exits: *Mat x2) History --------- Turn | Location | Event 20 | -11/Scrapyard | Discovered new exit (range 14) 406 | -11/Scrapyard | Entered Materials 407 | -10/Materials | Build established: Mutant 679 | -10/Materials | Discovered new exit (range 5) 688 | -10/Materials | Entered another Materials area 688 | -9/Materials | Evolved 2 slots: Utility x2 713 | -9/Materials | Identified exit to Mines 713 | -9/Materials | Identified exit to Storage 956 | -9/Materials | Build established: Scavenger-Mutant 1187 | -9/Materials | Entered Mines 1823 | -9/Mines | Discovered new exit (range 6) 1827 | -9/Mines | Identified exit to Materials 1893 | -9/Mines | Learned Materials trap positions 2253 | -9/Mines | Discovered exit to Materials (range 5) 2262 | -9/Mines | Received a Rocket Launcher from a helpful Derelict 2299 | -9/Mines | Assembled infested the area 2319 | -9/Mines | Core integrity fell below 50% 2328 | -9/Mines | Core integrity fell below 20% 2333 | -9/Mines | Destroyed by D-53 Grenadier with Mini Grenade Launcher Last Messages --------------- 02316_ Rocket Launcher destroyed. 02317_ as-70980 destroyed. 02317_ as-82416 destroyed. 02317_ as-77373 destroyed. 02317_ as-34671 destroyed. 02317_ as-82281 destroyed. 02317_ as-75546 destroyed. 02317_ Acquired 1 matter. 02319_ as-44943 destroyed. 02320_ The unstable cave ceiling collapses. 02321_ as-85088 destroyed. 02323_ The unstable cave ceiling collapses. 02325_ Wheel destroyed. 02325_ as-16734 destroyed. 02325_ as-56657 destroyed. 02326_ The unstable cave ceiling collapses. 02327_ as-88832 destroyed. 02327_ as-46451 destroyed. 02328_ U-05 Engineer builds a Wall. 02329_ The unstable cave ceiling collapses. Map ----- +----------------------------------------------------+ | ???????????????????????????????????? | | ???????????????????????????????????? | | ???????????????????????????????????? | | ???????????????????????????????????? | | ???????????????????????????????????? | | ???????????????????????????????????? | | ???????????????????????????????????? | | ???????????????????????????????????? | | ???????????????????????????????????? | | ???????????????????????????????????? | | ??????????# ?????????????????????? | | ?????????? ????????????????????? | | ?????????? ????????????????????? | | ?????????? #????#???????????????? | | ??????? ?? #????????????????????? | | ?????????? ?????????????????????? | | ??????#???= ??????#??????????????? | | #?????????%! ????#???????????????? | | ??????????# ?????????????????????? | | ???#?#????# ##?#?#????????????????? | | ????????#?# #??# ???? ????????????? | | #???#??#### ###?##????????????????? | | ??????## # ##????#??????????????? | | ??????# ######## #??????????? | | #?#??## # =!* ##??#??????? | | ##?#### @ !%=! #?? ??????? | | ???# a |%#? ? ??????????? | | ??## %!##??## ?????????? | | ??# ##?#?##???????????? | | ?### ####???#?#?????????? | | ?## #?###????#? ????? | | ??# #####???#???????#? | | ??##### # # d #??# ?##? ???#??? | | ???### ###### ???#???## | | ?#?### d "%"## ? ? ?##??# | | ??#### # ### ##?# ? ##??# | | ##?#### # ###?# #??#?? ?????## | | ##????# # ##### ##### ?###?# | | ??????##### # ### ###?## ?##??## | | ?#???#####?# < ##=#####?#####??# | | ?########### ## ## #??###??## | | ?## #?# #??????##?# | | #?# """" #### ##### ##?#?#?##### | | ?## """" ############ ###????#??## | | ?## """" ########### | | ### ##### | | ??# ##### ## ###### ### | | #?############ ## #??### #?# | | #?############ ### ##?#??# #### | | ############## #### ##?##??# #??# | +----------------------------------------------------+ Best States ------------- Heat Dissipation 28 Energy Generation 14 Energy Capacity 250 Matter Stores 300 Matter Capacity 300 Sight Range 16 Robot Scan Range 14 Terrain Scan Range 16 Terrain Scan Density 85 Additional Mass Support 6 Evasion (%) 50 Item Schematics ----------------- None Robot Schematics ------------------ None Fabricated ------------ Nothing Alien Tech Used ----------------- None Achievements -------------- Hunted Challenges ------------ None Game ------ Seed FrostDimensionalSuite Manual? 0 Play Time 00:27:32 Cumulative 26.7 hours Start 2024.04.13 @ 02:48:45 End 2024.04.13 @ 03:17:57 Sessions 1 Manual Loads 0 Difficulty Rogue Special Mode None Game No. 37 Rogue 22 Adventurer 0 Explorer 15 Win Type - Total 0 Types 0/0/0/0/0/0/0/0/0 Lore% 17 Gallery% 28 Achievement% 20 Wizard Run 0 Options --------- Layout 1 ASCII 0 Keyboard 0 Movement Mouse Keybinds 0 Fullscreen 1 Font 24/Smallcaps Map View 50x35 Zoom Use 0% Tactical HUD 1 Map Filters NONE Filters NONE Steam 1 RUN: 530a7eee-01c3-4d8d-9499-14f6bf419d3a